fUST/lending_fUST_20250522
["ID","MTS","AMOUNT","RATE_DAILY","PERIOD"]
[361966211,1747912246077,-430.0,0.00022191,2]
[361966213,1747912246087,-430.0,0.00022191,2]
[361966215,1747912246097,-1350.17,0.00022191,2]
[361966217,1747912246107,-318.86678483,0.00022191,2]
[361966219,1747912246117,-430.0,0.00022191,2]
[361966220,1747912246127,-430.0,0.00022191,2]
[361966222,1747912246137,-310.0,0.00022191,2]
[361966225,1747912246147,-2404.76,0.00022191,2]
[361966227,1747912246158,-430.0,0.00022191,2]
[361966229,1747912246169,-430.0,0.00022191,2]
[361966231,1747912246178,-430.95,0.00022191,2]
[361966233,1747912246188,-430.0,0.00022191,2]
[361966235,1747912246198,-310.0,0.00022191,2]
[361966237,1747912246208,-430.0,0.00022191,2]
[361966239,1747912246217,-430.0,0.00022191,2]
[361966240,1747912246226,-508.65,0.00022191,2]
[361966243,1747912246236,-310.0,0.00022191,2]
[361966245,1747912246246,-430.0,0.00022191,2]
[361966247,1747912246256,-6434.33,0.00022191,2]
[361966249,1747912246266,-1008.79,0.00022191,2]
[361966251,1747912246276,-689.45,0.00022191,2]
[361966253,1747912246286,-430.0,0.00022191,2]
[361966254,1747912246295,-430.0,0.00022191,2]
[361966256,1747912246304,-430.0,0.00022191,2]
[361966258,1747912246314,-430.0,0.00022191,2]
[361966260,1747912246324,-1040.04,0.00022191,2]
[361966262,1747912246334,-430.0,0.00022191,2]
[361966264,1747912246343,-430.0,0.00022191,2]
[361966266,1747912246353,-430.0,0.00022191,2]
[361966268,1747912246364,-430.0,0.00022191,2]
[361966270,1747912246374,-430.0,0.00022191,2]
[361966272,1747912246384,-430.0,0.00022191,2]
[361966274,1747912246395,-430.0,0.00022191,2]
[361966276,1747912246405,-430.0,0.00022191,2]
[361966278,1747912246415,-430.0,0.00022191,2]
[361966280,1747912246426,-430.0,0.00022191,2]
[361966282,1747912246436,-2248.53,0.00022191,2]
[361966284,1747912246446,-430.0,0.00022191,2]
[361966287,1747912246457,-430.0,0.00022191,2]
[361966288,1747912246467,-573.90453187,0.00022191,2]
[361966290,1747912246476,-512.61,0.00022191,2]
[361966292,1747912246486,-312.23502162,0.00022191,2]
[361966294,1747912246496,-430.0,0.00022191,2]
[361966296,1747912246505,-1024.02,0.00022191,2]
[361966298,1747912246515,-430.0,0.00022191,2]
[361966300,1747912246525,-4030.11,0.00022191,2]
[361966302,1747912246535,-486.95,0.00022191,2]
[361966304,1747912246546,-430.0,0.00022191,2]
[361966306,1747912246557,-1882.09,0.00022191,2]
[361966308,1747912246567,-430.0,0.00022191,2]
[361966310,1747912246576,-430.0,0.00022191,2]
[361966313,1747912246588,-430.0,0.00022191,2]
[361966315,1747912246597,-430.0,0.00022191,2]
[361966317,1747912246607,-430.0,0.00022191,2]
[361966319,1747912246618,-430.0,0.00022191,2]
[361966321,1747912246630,-430.0,0.00022191,2]
[361966323,1747912246640,-430.0,0.00022191,2]
[361966325,1747912246650,-430.0,0.00022191,2]
[361966327,1747912246660,-430.0,0.00022191,2]
[361966329,1747912246669,-430.0,0.00022191,2]
[361966331,1747912246679,-749.31,0.00022191,2]
[361966333,1747912246688,-430.0,0.00022191,2]
[361966335,1747912246698,-430.0,0.00022191,2]
[361966337,1747912246708,-430.0,0.00022191,2]
[361966339,1747912246717,-430.0,0.00022191,2]
[361966340,1747912246726,-430.0,0.00022191,2]
[361966342,1747912246736,-430.0,0.00022191,2]
[361966344,1747912246745,-520.8,0.00022191,2]
[361966346,1747912246755,-2264.56,0.00022191,2]
[361966348,1747912246764,-838.25,0.00022191,2]
[361966350,1747912246773,-430.0,0.00022191,2]
[361966352,1747912246783,-430.0,0.00022191,2]
[361966354,1747912246792,-430.0,0.00022191,2]
[361966356,1747912246801,-430.0,0.00022191,2]
[361966358,1747912246811,-430.0,0.00022191,2]
[361966360,1747912246820,-400.0,0.00022191,2]
[361966362,1747912246830,-430.0,0.00022191,2]
[361966364,1747912246839,-641.36,0.00022191,2]
[361966366,1747912246849,-430.0,0.00022191,2]
[361966368,1747912246858,-430.0,0.00022191,2]
[361966370,1747912246867,-724.96,0.00022191,2]
[361966372,1747912246878,-340.0,0.00022191,2]
[361966374,1747912246887,-585.15,0.00022191,2]
[361966376,1747912246896,-430.0,0.00022191,2]
[361966378,1747912246906,-430.0,0.00022191,2]
[361966380,1747912246915,-1217.52,0.00022191,2]
[361966393,1747912247021,-824.97,0.00022191,2]
[361966395,1747912247031,-310.0,0.00022191,2]
[361966397,1747912247040,-643.05,0.00022191,2]
[361966399,1747912247050,-430.0,0.00022191,2]
[361966401,1747912247059,-430.0,0.00022191,2]
[361966403,1747912247070,-751.68,0.00022191,2]
[361966405,1747912247080,-430.0,0.00022191,2]
[361966407,1747912247089,-715.31,0.00022191,2]
[361966409,1747912247099,-788.43,0.00022191,2]
[361966411,1747912247110,-430.0,0.00022191,2]
[361966413,1747912247119,-2187.86,0.00022191,2]
[361966415,1747912247129,-430.0,0.00022191,2]
[361966417,1747912247138,-1146.93,0.00022191,2]
[361966419,1747912247147,-2113.57,0.00022191,2]
[361966421,1747912247156,-539.16,0.00022191,2]
[361966423,1747912247166,-5518.59,0.00022191,2]
[361966424,1747912247175,-430.0,0.00022191,2]
[361966426,1747912247184,-1761.88,0.00022191,2]
[361966428,1747912247194,-430.0,0.00022191,2]
[361966430,1747912247204,-430.0,0.00022191,2]
[361966432,1747912247213,-430.0,0.00022191,2]
[361966434,1747912247223,-862.74,0.00022191,2]
[361966436,1747912247233,-694.53,0.00022191,2]
[361966438,1747912247242,-430.0,0.00022191,2]
[361966440,1747912247253,-269.60259686,0.00022191,2]
[361966443,1747912247263,-649.56,0.00022191,2]
[361966445,1747912247274,-430.0,0.00022191,2]
[361966447,1747912247284,-340.0,0.00022191,2]
[361966449,1747912247293,-723.21,0.00022191,2]
[361966450,1747912247302,-1179.45,0.00022191,2]
[361966452,1747912247312,-430.0,0.00022191,2]
[361966454,1747912247322,-800.47,0.00022191,2]
[361966457,1747912247332,-430.0,0.00022191,2]
[361966459,1747912247341,-3199.28,0.00022191,2]
[361966461,1747912247351,-430.0,0.00022191,2]
[361966462,1747912247361,-970.82,0.00022191,2]
[361966465,1747912247370,-430.0,0.00022191,2]
[361966467,1747912247383,-5172.88299583,0.00022279,6]
[361966468,1747912247393,-296.47015038,0.00022297,2]
[361966470,1747912247405,-2351.0,0.00022332,2]
[361966473,1747912247418,-160.0,0.00022336,2]
[361966475,1747912247429,-160.0,0.00022336,2]
[361966476,1747912247439,-160.0,0.00022337,2]
[361966478,1747912247449,-259.71909781,0.00022337,2]
[361966480,1747912247459,-212.4501065,0.00022337,2]
[361966482,1747912247469,-160.0,0.00022337,2]
[361966484,1747912247479,-160.0,0.00022337,2]
[361966487,1747912247490,-12622.38185639,0.00022337,2]
[361966488,1747912247499,-422.78357425,0.00022337,2]
[361966491,1747912247510,-418.56086243,0.00022348,2]
[361966492,1747912247520,-500.0,0.00022348,2]
[361966494,1747912247529,-2000.0,0.00022396,3]
[361966496,1747912247541,-5172.88299583,0.00022417,7]
[361966499,1747912247552,-372.48068192,0.00022437,2]
[361966501,1747912247561,-500.0,0.00022448,2]
[361966503,1747912247570,-500.0,0.00022448,2]
[361966505,1747912247581,-430.0,0.00022465,2]
[361966507,1747912247590,-430.0,0.00022465,2]
[361966509,1747912247601,-310.0,0.00022465,2]
[361966511,1747912247614,-450.0,0.00022465,2]
[361966513,1747912247624,-450.0,0.00022465,2]
[361966515,1747912247634,-450.0,0.00022465,2]
[361966516,1747912247644,-430.0,0.00022465,2]
[361966518,1747912247653,-430.0,0.00022465,2]
[361966520,1747912247663,-430.0,0.00022465,2]
[361966522,1747912247673,-430.0,0.00022465,2]
[361966524,1747912247683,-430.0,0.00022465,2]
[361966526,1747912247693,-430.0,0.00022465,2]
[361966529,1747912247703,-430.0,0.00022465,2]
[361966531,1747912247713,-430.0,0.00022465,2]
[361966533,1747912247723,-430.0,0.00022465,2]
[361966534,1747912247733,-519.14,0.00022465,2]
[361966536,1747912247743,-430.0,0.00022465,2]
[361966537,1747912247752,-762.73,0.00022465,2]
[361966539,1747912247762,-430.0,0.00022465,2]
[361966541,1747912247772,-430.0,0.00022465,2]
[361966543,1747912247781,-430.0,0.00022465,2]
[361966545,1747912247792,-430.0,0.00022465,2]
[361966547,1747912247802,-430.0,0.00022465,2]
[361966549,1747912247812,-430.0,0.00022465,2]
[361966552,1747912247826,-430.0,0.00022465,2]
[361966554,1747912247836,-430.0,0.00022465,2]
[361966556,1747912247846,-1210.22,0.00022465,2]
[361966558,1747912247855,-350.87080426,0.00022465,2]
[361966560,1747912247867,-430.0,0.00022465,2]
[361966562,1747912247878,-430.0,0.00022465,2]
[361966564,1747912247888,-344.90034739,0.00022465,2]
[361966566,1747912247898,-430.0,0.00022465,2]
[361966568,1747912247907,-340.0,0.00022465,2]
[361966570,1747912247917,-430.0,0.00022465,2]
[361966572,1747912247927,-293.36145177,0.00022465,2]
[361966574,1747912247936,-430.0,0.00022465,2]
[361966576,1747912247948,-355.58193868,0.00022465,2]
[361966578,1747912247968,-340.0,0.00022465,2]
[361966579,1747912247985,-430.0,0.00022465,2]
[361966581,1747912248003,-430.0,0.00022465,2]
[361966583,1747912248015,-340.0,0.00022465,2]
[361966586,1747912248027,-430.0,0.00022465,2]
[361966588,1747912248041,-430.0,0.00022465,2]
[361966590,1747912248051,-318.67535326,0.00022465,2]
[361966592,1747912248062,-406.87933725,0.00022465,2]
[361966594,1747912248072,-892.39,0.00022465,2]
[361966596,1747912248083,-310.0,0.00022465,2]
[361966598,1747912248094,-310.0,0.00022465,2]
[361966600,1747912248104,-430.0,0.00022465,2]
[361966602,1747912248117,-323.84184174,0.00022465,2]
[361966604,1747912248128,-430.0,0.00022465,2]
[361966605,1747912248138,-430.0,0.00022465,2]
[361966607,1747912248149,-450.30720909,0.00022465,2]
[361966609,1747912248159,-430.0,0.00022465,2]
[361966611,1747912248169,-430.0,0.00022465,2]
[361966612,1747912248179,-430.0,0.00022465,2]
[361966613,1747912248189,-490.0,0.00022465,2]
[361966614,1747912248199,-430.0,0.00022465,2]
[361966615,1747912248209,-430.0,0.00022465,2]
[361966616,1747912248218,-430.0,0.00022465,2]
[361966617,1747912248228,-1096.23,0.00022465,2]
[361966618,1747912248238,-430.0,0.00022465,2]
[361966619,1747912248248,-1018.48,0.00022465,2]
[361966620,1747912248258,-430.0,0.00022465,2]
[361966621,1747912248268,-1648.66,0.00022465,2]
[361966622,1747912248278,-1021.88,0.00022465,2]
[361966623,1747912248287,-430.0,0.00022465,2]
[361966624,1747912248297,-1350.17,0.00022465,2]
[361966625,1747912248308,-430.0,0.00022465,2]
[361966627,1747912248318,-430.0,0.00022465,2]
[361966629,1747912248329,-2404.76,0.00022465,2]
[361966641,1747912248433,-430.95,0.00022465,2]
[361966643,1747912248446,-246.21019193,0.00022465,2]
[361966645,1747912248456,-490.0,0.00022465,2]
[361966647,1747912248466,-508.65,0.00022465,2]
[361966649,1747912248476,-6434.33,0.00022465,2]
[361966652,1747912248486,-1008.79,0.00022465,2]
[361966654,1747912248498,-689.45,0.00022465,2]
[361966656,1747912248509,-430.0,0.00022465,2]
[361966658,1747912248519,-430.0,0.00022465,2]
[361966660,1747912248529,-430.0,0.00022465,2]
[361966662,1747912248541,-1040.04,0.00022465,2]
[361966664,1747912248554,-430.0,0.00022465,2]
[361966666,1747912248563,-500.0,0.00022465,2]
[361966668,1747912248573,-510.0,0.00022465,2]
[361966670,1747912248585,-430.0,0.00022465,2]
[361966672,1747912248595,-343.83891837,0.00022465,2]
[361966675,1747912248606,-430.0,0.00022465,2]
[361966677,1747912248616,-430.0,0.00022465,2]
[361966679,1747912248627,-430.0,0.00022465,2]
[361966681,1747912248637,-430.0,0.00022465,2]
[361966683,1747912248647,-2248.53,0.00022465,2]
[361966685,1747912248658,-430.0,0.00022465,2]
[361966687,1747912248668,-430.0,0.00022465,2]
[361966689,1747912248678,-512.61,0.00022465,2]
[361966691,1747912248688,-1024.02,0.00022465,2]
[361966693,1747912248698,-430.0,0.00022465,2]
[361966695,1747912248708,-4030.11,0.00022465,2]
[361966697,1747912248718,-486.95,0.00022465,2]
[361966699,1747912248728,-1882.09,0.00022465,2]
[361966701,1747912248738,-491.67282643,0.00022465,2]
[361966703,1747912248748,-430.0,0.00022465,2]
[361966705,1747912248758,-430.0,0.00022465,2]
[361966707,1747912248767,-430.0,0.00022465,2]
[361966709,1747912248777,-430.0,0.00022465,2]
[361966711,1747912248787,-430.0,0.00022465,2]
[361966713,1747912248797,-430.0,0.00022465,2]
[361966715,1747912248807,-430.0,0.00022465,2]
[361966717,1747912248816,-430.0,0.00022465,2]
[361966719,1747912248826,-749.31,0.00022465,2]
[361966721,1747912248835,-430.0,0.00022465,2]
[361966723,1747912248845,-430.0,0.00022465,2]
[361966725,1747912248855,-430.0,0.00022465,2]
[361966727,1747912248866,-2264.56,0.00022465,2]
[361966729,1747912248876,-838.25,0.00022465,2]
[361966731,1747912248886,-295.846454,0.00022465,2]
[361966733,1747912248897,-430.0,0.00022465,2]
[361966735,1747912248907,-430.0,0.00022465,2]
[361966737,1747912248917,-641.36,0.00022465,2]
[361966739,1747912248928,-430.0,0.00022465,2]
[361966741,1747912248938,-724.96,0.00022465,2]
[361966743,1747912248949,-585.15,0.00022465,2]
[361966746,1747912248961,-430.0,0.00022465,2]
[361966748,1747912248971,-430.0,0.00022465,2]
[361966750,1747912248981,-1217.52,0.00022465,2]
[361966751,1747912248993,-824.97,0.00022465,2]
[361966753,1747912249003,-643.05,0.00022465,2]
[361966755,1747912249014,-430.0,0.00022465,2]
[361966757,1747912249024,-430.0,0.00022465,2]
[361966759,1747912249034,-751.68,0.00022465,2]
[361966761,1747912249043,-340.0,0.00022465,2]
[361966763,1747912249054,-715.31,0.00022465,2]
[361966765,1747912249063,-788.43,0.00022465,2]
[361966767,1747912249073,-2187.86,0.00022465,2]
[361966769,1747912249084,-430.0,0.00022465,2]
[361966771,1747912249093,-1146.93,0.00022465,2]
[361966773,1747912249103,-2113.57,0.00022465,2]
[361966775,1747912249113,-539.16,0.00022465,2]
[361966777,1747912249124,-5518.59,0.00022465,2]
[361966779,1747912249134,-340.0,0.00022465,2]
[361966781,1747912249144,-1761.88,0.00022465,2]
[361966783,1747912249154,-179.11155793,0.00022465,2]
[361966785,1747912249165,-430.0,0.00022465,2]
[361966787,1747912249175,-430.0,0.00022465,2]
[361966789,1747912249185,-862.74,0.00022465,2]
[361966791,1747912249196,-694.53,0.00022465,2]
[361966794,1747912249207,-430.0,0.00022465,2]
[361966795,1747912249217,-649.56,0.00022465,2]
[361966798,1747912249227,-430.0,0.00022465,2]
[361966800,1747912249237,-723.21,0.00022465,2]
[361966801,1747912249248,-1179.45,0.00022465,2]
[361966803,1747912249258,-340.0,0.00022465,2]
[361966806,1747912249269,-800.47,0.00022465,2]
[361966808,1747912249280,-430.0,0.00022465,2]
[361966809,1747912249290,-3199.28,0.00022465,2]
[361966812,1747912249301,-430.0,0.00022465,2]
[361966814,1747912249311,-970.82,0.00022465,2]
[361966815,1747912249321,-430.0,0.00022465,2]
[361966817,1747912249331,-151.0,0.000225,5]
[361966819,1747912249342,-500.0,0.00022521,2]
[361966823,1747912249365,-209.69237098,0.00022521,2]
[361966825,1747912249378,-1000.0,0.00022521,2]
[361966827,1747912249388,-1003.84782089,0.00022521,2]
[361966829,1747912249398,-1000.0,0.00022521,2]
[361966831,1747912249408,-1000.0,0.00022521,2]
[361966833,1747912249418,-500.0,0.0002255,2]
[361966836,1747912249430,-505.28617102,0.0002255,2]
[361966838,1747912249441,-5172.88299583,0.00022555,7]
[361966840,1747912249451,-280.75444293,0.00022588,2]
[361966842,1747912249461,-188.02743322,0.00022588,2]
[361966844,1747912249470,-207.4,0.00022588,2]
[361966846,1747912249480,-500.0,0.00022637,2]
[361966848,1747912249491,-1000.0,0.00022639,2]
[361966850,1747912249501,-5172.88299583,0.00022693,7]
[361966852,1747912249511,-2000.0,0.00022696,3]
[361966854,1747912249521,-151.0,0.000227,6]
[361966856,1747912249531,-1000.0,0.00022721,2]
[361966858,1747912249543,-1029.44749862,0.00022721,2]
[361966860,1747912249554,-10773.52837107,0.00022739,3]
[361966862,1747912249564,-430.0,0.00022739,2]
[361966864,1747912249574,-430.0,0.00022739,2]
[361966866,1747912249584,-430.0,0.00022739,2]
[361966868,1747912249594,-430.0,0.00022739,2]
[361966870,1747912249604,-430.0,0.00022739,2]
[361966873,1747912249616,-430.0,0.00022739,2]
[361966875,1747912249627,-430.0,0.00022739,2]
[361966877,1747912249637,-430.0,0.00022739,2]
[361966879,1747912249646,-430.0,0.00022739,2]
[361966881,1747912249655,-430.0,0.00022739,2]
[361966895,1747912249783,-430.0,0.00022739,2]
[361966897,1747912249792,-430.0,0.00022739,2]
[361966899,1747912249802,-762.73,0.00022739,2]
[361966901,1747912249813,-430.0,0.00022739,2]
[361966903,1747912249823,-430.0,0.00022739,2]
[361966905,1747912249833,-430.0,0.00022739,2]
[361966907,1747912249842,-430.0,0.00022739,2]
[361966909,1747912249852,-430.0,0.00022739,2]
[361966911,1747912249864,-430.0,0.00022739,2]
[361966913,1747912249873,-430.0,0.00022739,2]
[361966915,1747912249883,-430.0,0.00022739,2]
[361966917,1747912249892,-1210.22,0.00022739,2]
[361966919,1747912249903,-430.0,0.00022739,2]
[361966921,1747912249913,-430.0,0.00022739,2]
[361966923,1747912249923,-430.0,0.00022739,2]
[361966926,1747912249937,-430.0,0.00022739,2]
[361966928,1747912249948,-430.0,0.00022739,2]
[361966930,1747912249957,-430.0,0.00022739,2]
[361966932,1747912249967,-430.0,0.00022739,2]
[361966934,1747912249977,-430.0,0.00022739,2]
[361966936,1747912249987,-892.39,0.00022739,2]
[361966938,1747912249996,-430.0,0.00022739,2]
[361966941,1747912250006,-520.39180069,0.00022739,2]
[361966943,1747912250017,-430.0,0.00022739,2]
[361966945,1747912250027,-430.0,0.00022739,2]
[361966947,1747912250037,-430.0,0.00022739,2]
[361966949,1747912250046,-430.0,0.00022739,2]
[361966951,1747912250055,-430.0,0.00022739,2]
[361966953,1747912250065,-430.0,0.00022739,2]
[361966955,1747912250075,-430.0,0.00022739,2]
[361966957,1747912250085,-1096.23,0.00022739,2]
[361966959,1747912250095,-490.0,0.00022739,2]
[361966961,1747912250105,-1018.48,0.00022739,2]
[361966963,1747912250114,-430.0,0.00022739,2]
[361966965,1747912250124,-1648.66,0.00022739,2]
[361966967,1747912250134,-1021.88,0.00022739,2]
[361966969,1747912250145,-430.0,0.00022739,2]
[361966971,1747912250155,-1350.17,0.00022739,2]
[361966973,1747912250165,-430.0,0.00022739,2]
[361966975,1747912250174,-430.0,0.00022739,2]
[361966977,1747912250184,-2404.76,0.00022739,2]
[361966979,1747912250194,-430.95,0.00022739,2]
[361966982,1747912250205,-508.65,0.00022739,2]
[361966984,1747912250214,-6434.33,0.00022739,2]
[361966986,1747912250224,-1008.79,0.00022739,2]
[361966988,1747912250234,-689.45,0.00022739,2]
[361966989,1747912250244,-430.0,0.00022739,2]
[361966991,1747912250255,-430.0,0.00022739,2]
[361966993,1747912250265,-1040.04,0.00022739,2]
[361966994,1747912250276,-430.0,0.00022739,2]
[361966995,1747912250286,-430.0,0.00022739,2]
[361966996,1747912250296,-430.0,0.00022739,2]
[361966997,1747912250305,-430.0,0.00022739,2]
[361966998,1747912250315,-430.0,0.00022739,2]
[361966999,1747912250344,-430.0,0.00022739,2]
[361967000,1747912250362,-2248.53,0.00022739,2]
[361967001,1747912250386,-430.0,0.00022739,2]
[361967002,1747912250408,-430.0,0.00022739,2]
[361967003,1747912250430,-512.61,0.00022739,2]
[361967004,1747912250452,-1024.02,0.00022739,2]
[361967005,1747912250471,-430.0,0.00022739,2]
[361967006,1747912250488,-4030.11,0.00022739,2]
[361967007,1747912250507,-486.95,0.00022739,2]
[361967008,1747912250528,-1882.09,0.00022739,2]
[361967009,1747912250553,-430.0,0.00022739,2]
[361967010,1747912250571,-539.90961659,0.00022739,2]
[361967011,1747912250589,-430.0,0.00022739,2]
[361967012,1747912250610,-430.0,0.00022739,2]
[361967013,1747912250627,-430.0,0.00022739,2]
[361967014,1747912250645,-430.0,0.00022739,2]
[361967015,1747912250661,-430.0,0.00022739,2]
[361967016,1747912250679,-430.0,0.00022739,2]
[361967017,1747912250697,-749.31,0.00022739,2]
[361967018,1747912250713,-430.0,0.00022739,2]
[361967019,1747912250731,-430.0,0.00022739,2]
[361967020,1747912250747,-430.0,0.00022739,2]
[361967021,1747912250764,-2264.56,0.00022739,2]
[361967022,1747912250781,-838.25,0.00022739,2]
[361967023,1747912250797,-430.0,0.00022739,2]
[361967024,1747912250814,-430.0,0.00022739,2]
[361967025,1747912250831,-641.36,0.00022739,2]
[361967026,1747912250847,-430.0,0.00022739,2]
[361967027,1747912250864,-724.96,0.00022739,2]
[361967028,1747912250881,-585.15,0.00022739,2]
[361967030,1747912250899,-430.0,0.00022739,2]
[361967033,1747912250916,-430.0,0.00022739,2]
[361967035,1747912250932,-1217.52,0.00022739,2]
[361967038,1747912250949,-824.97,0.00022739,2]
[361967041,1747912250965,-643.05,0.00022739,2]
[361967044,1747912250981,-430.0,0.00022739,2]
[361967046,1747912250998,-430.0,0.00022739,2]
[361967049,1747912251014,-751.68,0.00022739,2]
[361967052,1747912251031,-715.31,0.00022739,2]
[361967055,1747912251046,-788.43,0.00022739,2]
[361967057,1747912251064,-2187.86,0.00022739,2]
[361967060,1747912251081,-430.0,0.00022739,2]
[361967063,1747912251098,-1146.93,0.00022739,2]
[361967065,1747912251116,-2113.57,0.00022739,2]
[361967068,1747912251133,-539.16,0.00022739,2]
[361967071,1747912251149,-5518.59,0.00022739,2]
[361967074,1747912251166,-1761.88,0.00022739,2]
[361967076,1747912251183,-430.0,0.00022739,2]
[361967079,1747912251200,-430.0,0.00022739,2]
[361967082,1747912251218,-862.74,0.00022739,2]
[361967085,1747912251235,-694.53,0.00022739,2]
[361967087,1747912251245,-430.0,0.00022739,2]
[361967089,1747912251255,-649.56,0.00022739,2]
[361967091,1747912251264,-430.0,0.00022739,2]
[361967110,1747912251448,-723.21,0.00022739,2]
[361967112,1747912251460,-1179.45,0.00022739,2]
[361967115,1747912251470,-800.47,0.00022739,2]
[361967117,1747912251479,-430.0,0.00022739,2]
[361967119,1747912251489,-3199.28,0.00022739,2]
[361967121,1747912251498,-430.0,0.00022739,2]
[361967123,1747912251508,-970.82,0.00022739,2]
[361967125,1747912251517,-430.0,0.00022739,2]
[361967127,1747912251528,-296.47015038,0.00022776,2]
[361967129,1747912251540,-5172.88299583,0.00022831,8]
[361967131,1747912251551,-5172.88299583,0.00022969,8]
[361967133,1747912251561,-739.22213533,0.00022996,2]
[361967134,1747912251571,-500.0,0.00022996,2]
[361967137,1747912251582,-160.0,0.00023,3]
[361967139,1747912251593,-422.78357425,0.00023,3]
[361967141,1747912251602,-504.10205209,0.00023,30]
[361967143,1747912251614,-151.0,0.00023,5]
[361967145,1747912251624,-500.0,0.00023,30]
[361967147,1747912251634,-500.0,0.00023,30]
[361967149,1747912251643,-500.0,0.00023,30]
[361967151,1747912251652,-528.21889417,0.00023,30]
[361967152,1747912251663,-500.0,0.00023,30]
[361967154,1747912251673,-500.0,0.00023,30]
[361967156,1747912251683,-9551.00378839,0.00023012,2]
[361967158,1747912251692,-160.0,0.00023013,3]
[361967160,1747912251702,-430.0,0.00023013,2]
[361967162,1747912251712,-430.0,0.00023013,2]
[361967164,1747912251721,-430.0,0.00023013,2]
[361967166,1747912251731,-430.0,0.00023013,2]
[361967168,1747912251741,-430.0,0.00023013,2]
[361967170,1747912251750,-430.0,0.00023013,2]
[361967172,1747912251760,-430.0,0.00023013,2]
[361967174,1747912251769,-430.0,0.00023013,2]
[361967176,1747912251779,-430.0,0.00023013,2]
[361967178,1747912251789,-430.0,0.00023013,2]
[361967180,1747912251799,-430.0,0.00023013,2]
[361967182,1747912251808,-340.0,0.00023013,2]
[361967185,1747912251817,-762.73,0.00023013,2]
[361967187,1747912251827,-430.0,0.00023013,2]
[361967188,1747912251837,-430.0,0.00023013,2]
[361967191,1747912251847,-430.0,0.00023013,2]
[361967193,1747912251856,-430.0,0.00023013,2]
[361967195,1747912251866,-310.0,0.00023013,2]
[361967197,1747912251876,-430.0,0.00023013,2]
[361967199,1747912251886,-430.0,0.00023013,2]
[361967201,1747912251895,-430.0,0.00023013,2]
[361967202,1747912251905,-1210.22,0.00023013,2]
[361967203,1747912251915,-430.0,0.00023013,2]
[361967204,1747912251925,-430.0,0.00023013,2]
[361967205,1747912251934,-430.0,0.00023013,2]
[361967206,1747912251944,-430.0,0.00023013,2]
[361967207,1747912251953,-430.0,0.00023013,2]
[361967208,1747912251962,-530.0,0.00023013,2]
[361967209,1747912251972,-430.0,0.00023013,2]
[361967210,1747912251982,-430.0,0.00023013,2]
[361967211,1747912251992,-892.39,0.00023013,2]
[361967212,1747912252002,-430.0,0.00023013,2]
[361967213,1747912252011,-430.0,0.00023013,2]
[361967214,1747912252021,-430.0,0.00023013,2]
[361967215,1747912252031,-430.0,0.00023013,2]
[361967216,1747912252040,-430.0,0.00023013,2]